[Event "Festival Groningen-A 2024"]
[Site "Groningen"]
[Date "2024.12.26"]
[Round "5.23"]
[White "Bakija, Alan"]
[Black "Avetisyan, Ani"]
[Result "1/2-1/2"]
[ECO "D31"]
[WhiteElo "2233"]
[BlackElo "2059"]
[Annotator "RC"]
[PlyCount "78"]
[EventDate "2024.12.21"]
[EventType "swiss"]
[EventCountry "NED"]
[SourceTitle "playchess.com"]
[Source "ChessBase"]
[SourceQuality "1"]
[TimeControl "40/5400+30:1800+30"]

1. d4 {[%emt 0:00:43]} d5 {[%emt 0:00:11]} 2. c4 {[%emt 0:00:07]} e6 {[%emt 0:00:09]} 3. Nc3 {[%emt 0:00:08]} Nf6 {[%emt 0:00:06]} 4. cxd5 {[%emt 0:00:08]} exd5 {[%emt 0:00:03]} 5. Bf4 {[%emt 0:00:10]} c6 {[%emt 0:04:08]} 6. e3 {[%emt 0:00:54]} Bf5 {[%emt 0:05:31]} 7. Nge2 {[%emt 0:02:48]} Bd6 {[%emt 0:07:56]} 8. Ng3 {[%emt 0:01:11]} Bg6 {[%emt 0:01:12]} 9. h4 {[%emt 0:06:50]} h6 {[%emt 0:02:39]} 10. Bxd6 {[%emt 0:03:18]} Qxd6 {[%emt 0:00:06]} 11. h5 {[%emt 0:00:04]} Bh7 {[%emt 0:01:04]} 12. Bd3 {[%emt 0:00:06]} Bxd3 {[%emt 0:01:51]} 13. Qxd3 {[%emt 0:00:12]} O-O {[%emt 0:02:12]} 14. Nf5 {[%emt 0:02:24]} Qe6 {[%emt 0:05:03]} 15. f3 {[%emt 0:01:11]} Nbd7 {[%emt 0:04:19]} 16. g4 {[%emt 0:05:16]} b5 {[%emt 0:14:37]} 17. Kf2 {[%emt 0:02:59]} Rfc8 {[%emt 0:12:42]} 18. Ne2 {[%emt 0:01:45]} Nf8 {[%emt 0:02:41]} 19. Rac1 {[%emt 0:10:37]} Rc7 {[%emt 0:04:26]} 20. Qa3 {[%emt 0:12:12]} N8h7 {[%emt 0:04:45]} 21. Nf4 {[%emt 0:00:41]} Qd7 {[%emt 0:02:12]} 22. Nd3 {[%emt 0:00:34]} Ng5 {[%emt 0:03:39]} 23. Ne5 {[%emt 0:00:52]} Qe6 {[%emt 0:01:37]} 24. Nxc6 {[%emt 0:04:49]} Nxf3 {[%emt 0:05:10]} 25. Nce7+ {[%emt 0:06:56]} Rxe7 {[%emt 0:01:36]} 26. Nxe7+ {[%emt 0:06:08]} Kh8 {[%emt 0:01:44]} 27. Rc6 {[%emt 0:11:56]} Nxg4+ {[%emt 0:02:48]} 28. Kxf3 {[%emt 0:00:21]} Qe4+ {[%emt 0:00:31]} 29. Kg3 {[%emt 0:00:07]} Qxh1 {[%emt 0:03:43]} 30. Kxg4 {[%emt 0:00:14]} Qe4+ {[%emt 0:00:23]} 31. Kg3 {[%emt 0:00:48]} b4 {[%emt 0:00:04]} 32. Qxb4 {[%emt 0:01:11]} Qxe3+ {[%emt 0:00:08]} 33. Kg2 {[%emt 0:00:43]} Re8 {[%emt 0:01:17]} 34. Rc7 {[%emt 0:15:26]} Qg5+ {[%emt 0:03:38]} 35. Kf3 {[%emt 0:00:27]} Qxh5+ {[%emt 0:02:19]} 36. Kg3 {[%emt 0:00:29]} Qg5+ {[%emt 0:01:01]} 37. Kf3 {[%emt 0:00:06]} Qh5+ {[%emt 0:00:45]} 38. Kg3 {[%emt 0:00:13]} Qg5+ {[%emt 0:00:38]} 39. Kf3 {[%emt 0:00:15]} Qh5+ {[%emt 0:00:32]} 1/2-1/2

[Event "Festival Groningen-A 2024"]
[Site "Groningen"]
[Date "2024.12.26"]
[Round "5.24"]
[White "Sharma, Dinesh K."]
[Black "Ten Dam, Bram"]
[Result "0-1"]
[ECO "B11"]
[WhiteElo "2200"]
[BlackElo "2002"]
[Annotator "RC"]
[PlyCount "108"]
[EventDate "2024.12.21"]
[EventType "swiss"]
[EventCountry "NED"]
[SourceTitle "playchess.com"]
[Source "ChessBase"]
[SourceQuality "1"]
[TimeControl "40/5400+30:1800+30"]

1. e4 {[%emt 0:00:04]} c6 {[%emt 0:00:12]} 2. Nf3 {[%emt 0:00:38]} d5 {[%emt 0:00:15]} 3. Nc3 {[%emt 0:00:03]} dxe4 {[%emt 0:00:12]} 4. Nxe4 {[%emt 0:00:06]} Nf6 {[%emt 0:00:21]} 5. Qe2 {[%emt 0:01:13]} Nxe4 {[%emt 0:00:23]} 6. Qxe4 {[%emt 0:00:04]} Qa5 {[%emt 0:00:41]} 7. Bc4 {[%emt 0:03:59]} Bf5 {[%emt 0:00:57]} 8. Qf4 {[%emt 0:02:42]} e6 {[%emt 0:02:43]} 9. c3 {[%emt 0:02:04]} Nd7 {[%emt 0:06:51]} 10. O-O {[%emt 0:01:27]} Be7 {[%emt 0:01:35]} 11. b4 {[%emt 0:05:21]} Qd8 {[%emt 0:02:28]} 12. Re1 {[%emt 0:14:07]} O-O {[%emt 0:02:25]} 13. d4 {[%emt 0:00:50]} Re8 {[%emt 0:15:50]} 14. h3 {[%emt 0:10:20]} Nf6 {[%emt 0:06:15]} 15. Ne5 {[%emt 0:01:22]} Bg6 {[%emt 0:05:22]} 16. Qf3 {[%emt 0:03:31]} Nd7 {[%emt 0:04:02]} 17. Nxg6 {[%emt 0:01:51]} hxg6 {[%emt 0:00:12]} 18. g3 {[%emt 0:02:13]} Nb6 {[%emt 0:09:04]} 19. Bb3 {[%emt 0:04:22]} Bf6 {[%emt 0:02:31]} 20. h4 {[%emt 0:01:25]} a5 {[%emt 0:03:37]} 21. bxa5 {[%emt 0:00:32]} Rxa5 {[%emt 0:00:12]} 22. Bd2 {[%emt 0:00:47]} Rf5 {[%emt 0:07:12]} 23. Qg4 {[%emt 0:00:26]} c5 {[%emt 0:02:33]} 24. Be3 {[%emt 0:11:16]} cxd4 {[%emt 0:06:33]} 25. cxd4 {[%emt 0:00:48]} Ra5 {[%emt 0:06:52]} 26. Rad1 {[%emt 0:03:12]} Qd7 {[%emt 0:02:27]} 27. Rc1 {[%emt 0:06:26]} Rd8 {[%emt 0:03:58]} 28. Red1 {[%emt 0:04:19]} Qe7 {[%emt 0:02:56]} 29. Kg2 {[%emt 0:01:49]} Rb5 {[%emt 0:01:41]} 30. Qe2 {[%emt 0:09:22]} Ra5 {[%emt 0:01:05]} 31. Qf3 {[%emt 0:03:53]} Qd6 {[%emt 0:00:50]} 32. Bf4 {[%emt 0:00:56]} Qe7 {[%emt 0:00:29]} 33. Rc7 {[%emt 0:00:11]} Qe8 {[%emt 0:02:05]} 34. Rxb7 {[%emt 0:01:39]} Nd5 {[%emt 0:00:36]} 35. Bd2 {[%emt 0:03:38]} Raa8 {[%emt 0:01:25]} 36. Rc1 {[%emt 0:00:16]} Bxd4 {[%emt 0:00:15]} 37. h5 {[%emt 0:00:35]} gxh5 {[%emt 0:01:00]} 38. Qxh5 {[%emt 0:00:29]} Nf6 {[%emt 0:00:15]} 39. Qh4 {[%emt 0:01:07]} g6 {[%emt 0:00:52]} 40. Bg5 {[%emt 0:00:23]} Rdc8 {[%emt 0:00:30]} 41. Rh1 {[%emt 0:21:48]} Qc6+ {[%emt 0:02:00]} 42. f3 {[%emt 0:02:05]} Rxa2+ {[%emt 0:04:57]} 43. Bxa2 {[%emt 0:00:32]} Qc2+ {[%emt 0:00:12]} 44. Bd2 {[%emt 0:00:50]} Qxd2+ {[%emt 0:00:15]} 45. Kh3 {[%emt 0:00:01]} g5 {[%emt 0:00:14]} 46. Rd1 {[%emt 0:02:40]} Qxd1 {[%emt 0:01:18]} 47. Qxg5+ {[%emt 0:00:10]} Kh8 {[%emt 0:04:10]} 48. Qh4+ {[%emt 0:00:36]} Nh7 {[%emt 0:00:33]} 49. Rxf7 {[%emt 0:06:32]} Qh1+ {[%emt 0:00:12]} 50. Kg4 {[%emt 0:00:00]} Rg8+ {[%emt 0:00:33]} 51. Kh5 {[%emt 0:00:00]} Nf6+ {[%emt 0:00:46]} 52. Kh6 {[%emt 0:00:00]} Be3+ {[%emt 0:00:11]} 53. f4 {[%emt 0:00:00]} Qxh4+ {[%emt 0:00:04]} 54. gxh4 {[%emt 0:00:00]} Bxf4# {[%emt 0:00:06]} 0-1

[Event "Festival Groningen-A 2024"]
[Site "Groningen"]
[Date "2024.12.26"]
[Round "5.25"]
[White "Grooten, Herman"]
[Black "Zecha, Oscar"]
[Result "1-0"]
[ECO "A46"]
[WhiteElo "2183"]
[BlackElo "2134"]
[Annotator "RC"]
[PlyCount "72"]
[EventDate "2024.12.21"]
[EventType "swiss"]
[EventCountry "NED"]
[SourceTitle "playchess.com"]
[Source "ChessBase"]
[SourceQuality "1"]
[TimeControl "40/5400+30:1800+30"]

1. Nf3 {[%emt 0:00:03]} Nf6 {[%emt 0:00:04]} 2. b3 {[%emt 0:00:15]} d6 {[%emt 0:11:19]} 3. d4 {[%emt 0:01:45]} Nbd7 {[%emt 0:01:00]} 4. Bb2 {[%emt 0:00:11]} g6 {[%emt 0:05:42]} 5. Nbd2 {[%emt 0:02:43]} Bg7 {[%emt 0:00:27]} 6. e4 {[%emt 0:00:51]} O-O {[%emt 0:02:11]} 7. e5 {[%emt 0:11:53]} dxe5 {[%emt 0:09:06]} 8. dxe5 {[%emt 0:05:23]} Ng4 {[%emt 0:00:25]} 9. Qe2 {[%emt 0:01:10]} Qe8 {[%emt 0:18:37]} 10. h3 {[%emt 0:02:37]} Nh6 {[%emt 0:02:02]} 11. g4 {[%emt 0:03:38]} a5 {[%emt 0:01:58]} 12. Bg2 {[%emt 0:02:39]} Nc5 {[%emt 0:03:14]} 13. Nd4 {[%emt 0:05:20]} Kh8 {[%emt 0:07:51]} 14. f4 {[%emt 0:01:45]} Ra6 {[%emt 0:05:03]} 15. O-O {[%emt 0:07:17]} Ne6 {[%emt 0:09:43]} 16. Nxe6 {[%emt 0:08:07]} Rxe6 {[%emt 0:00:05]} 17. f5 {[%emt 0:05:18]} gxf5 {[%emt 0:01:04]} 18. gxf5 {[%emt 0:00:24]} Ra6 {[%emt 0:01:47]} 19. Be4 {[%emt 0:01:23]} Rg8 {[%emt 0:02:09]} 20. Kh2 {[%emt 0:02:18]} Bd7 {[%emt 0:03:43]} 21. Bd3 {[%emt 0:04:12]} Rc6 {[%emt 0:05:16]} 22. Qe4 {[%emt 0:02:01]} Bxf5 {[%emt 0:00:09]} 23. Rxf5 {[%emt 0:00:19]} Nxf5 {[%emt 0:00:05]} 24. Qxf5 {[%emt 0:00:12]} Rg6 {[%emt 0:01:56]} 25. Nf3 {[%emt 0:02:06]} Qc6 {[%emt 0:02:30]} 26. Be4 {[%emt 0:00:30]} Qb5 {[%emt 0:02:29]} 27. c4 {[%emt 0:01:48]} Qb4 {[%emt 0:00:45]} 28. Rd1 {[%emt 0:02:50]} a4 {[%emt 0:01:44]} 29. Ng5 {[%emt 0:01:54]} Rf8 {[%emt 0:01:32]} 30. Qf4 {[%emt 0:07:43]} Qb6 {[%emt 0:00:51]} 31. Bxg6 {[%emt 0:06:46]} fxg6 {[%emt 0:00:23]} 32. Rd8 {[%emt 0:01:18]} Rxd8 {[%emt 0:00:45]} 33. Nf7+ {[%emt 0:00:05]} Kg8 {[%emt 0:00:02]} 34. Nxd8 {[%emt 0:00:08]} h6 {[%emt 0:01:00]} 35. Qf7+ {[%emt 0:00:20]} Kh8 {[%emt 0:00:30]} 36. Ne6 {[%emt 0:00:08]} Qg1+ {[%emt 0:00:14]} 1-0

[Event "Festival Groningen-A 2024"]
[Site "Groningen"]
[Date "2024.12.26"]
[Round "5.26"]
[White "Groenewoud, Joel"]
[Black "Ritzerveld, Noah"]
[Result "0-1"]
[ECO "C84"]
[WhiteElo "2058"]
[BlackElo "2182"]
[Annotator "RC"]
[PlyCount "126"]
[EventDate "2024.12.21"]
[EventType "swiss"]
[EventCountry "NED"]
[SourceTitle "playchess.com"]
[Source "ChessBase"]
[SourceQuality "1"]
[TimeControl "40/5400+30:1800+30"]

1. e4 {[%emt 0:00:02]} e5 {[%emt 0:00:06]} 2. Nf3 {[%emt 0:00:06]} Nc6 {[%emt 0:00:05]} 3. Bb5 {[%emt 0:00:18]} a6 {[%emt 0:00:07]} 4. Ba4 {[%emt 0:00:08]} Nf6 {[%emt 0:00:07]} 5. O-O {[%emt 0:00:15]} Be7 {[%emt 0:00:07]} 6. Nc3 {[%emt 0:00:14]} b5 {[%emt 0:02:06]} 7. Bb3 {[%emt 0:01:02]} d6 {[%emt 0:01:51]} 8. a4 {[%emt 0:03:43]} b4 {[%emt 0:05:49]} 9. Nd5 {[%emt 0:00:54]} Na5 {[%emt 0:08:40]} 10. Ba2 {[%emt 0:01:16]} Nxd5 {[%emt 0:03:17]} 11. Bxd5 {[%emt 0:01:08]} c6 {[%emt 0:01:00]} 12. Ba2 {[%emt 0:00:13]} c5 {[%emt 0:07:31]} 13. c3 {[%emt 0:03:41]} bxc3 {[%emt 0:01:24]} 14. bxc3 {[%emt 0:01:11]} c4 {[%emt 0:09:25]} 15. d4 {[%emt 0:06:30]} cxd3 {[%emt 0:01:10]} 16. Qxd3 {[%emt 0:00:19]} Be6 {[%emt 0:01:45]} 17. Ba3 {[%emt 0:02:59]} Qc7 {[%emt 0:10:13]} 18. Nd2 {[%emt 0:11:57]} O-O {[%emt 0:02:08]} 19. Rfd1 {[%emt 0:05:49]} Rfc8 {[%emt 0:05:25]} 20. Bb4 {[%emt 0:08:10]} Bf8 {[%emt 0:07:52]} 21. Bd5 {[%emt 0:05:09]} Nc6 {[%emt 0:02:55]} 22. a5 {[%emt 0:06:43]} Nxb4 {[%emt 0:02:13]} 23. cxb4 {[%emt 0:00:25]} Bxd5 {[%emt 0:01:04]} 24. Qxd5 {[%emt 0:01:44]} Rab8 {[%emt 0:01:01]} 25. Rab1 {[%emt 0:02:47]} Rb5 {[%emt 0:01:27]} 26. Qd3 {[%emt 0:00:24]} d5 {[%emt 0:05:02]} 27. exd5 {[%emt 0:00:53]} Bxb4 {[%emt 0:01:44]} 28. Ne4 {[%emt 0:03:36]} Qxa5 {[%emt 0:01:56]} 29. Qg3 {[%emt 0:02:07]} Rd8 {[%emt 0:01:35]} 30. h3 {[%emt 0:07:05]} f5 {[%emt 0:04:37]} 31. Ng5 {[%emt 0:03:42]} Bd6 {[%emt 0:03:28]} 32. Ne6 {[%emt 0:02:09]} Rd7 {[%emt 0:00:07]} 33. Rbc1 {[%emt 0:01:01]} Rb8 {[%emt 0:00:49]} 34. Rc6 {[%emt 0:00:59]} Qb4 {[%emt 0:04:12]} 35. Rdc1 {[%emt 0:00:33]} g6 {[%emt 0:00:50]} 36. Rc8+ {[%emt 0:01:50]} Kf7 {[%emt 0:01:03]} 37. Qg5 {[%emt 0:01:37]} Rxc8 {[%emt 0:00:35]} 38. Rxc8 {[%emt 0:00:13]} Qe1+ {[%emt 0:00:37]} 39. Kh2 {[%emt 0:00:26]} e4+ {[%emt 0:00:05]} 40. g3 {[%emt 0:01:11]} Qxf2+ {[%emt 0:00:05]} 41. Kh1 {[%emt 0:30:15]} Qf3+ {[%emt 0:05:22]} 42. Kh2 {[%emt 0:00:00]} h6 {[%emt 0:06:48]} 43. Qh4 {[%emt 0:00:00]} Qf2+ {[%emt 0:00:51]} 44. Kh1 {[%emt 0:00:00]} f4 {[%emt 0:06:08]} 45. Ng5+ {[%emt 0:00:00]} hxg5 {[%emt 0:00:46]} 46. Qh7+ {[%emt 0:00:00]} Kf6 {[%emt 0:00:04]} 47. Qh8+ {[%emt 0:00:00]} Rg7 {[%emt 0:00:23]} 48. Qd8+ {[%emt 0:00:00]} Kf5 {[%emt 0:04:18]} 49. g4+ {[%emt 0:00:00]} Ke5 {[%emt 0:00:04]} 50. Qxg5+ {[%emt 0:00:00]} Kd4 {[%emt 0:00:07]} 51. Qf6+ {[%emt 0:00:00]} Kxd5 {[%emt 0:01:41]} 52. Qg5+ {[%emt 0:00:00]} Ke6 {[%emt 0:04:04]} 53. Re8+ {[%emt 0:00:00]} Be7 {[%emt 0:01:10]} 54. Qa5 {[%emt 0:00:00]} Qf3+ {[%emt 0:00:15]} 55. Kh2 {[%emt 0:00:00]} Qg3+ {[%emt 0:00:16]} 56. Kh1 {[%emt 0:00:00]} Qxh3+ {[%emt 0:00:11]} 57. Kg1 {[%emt 0:00:00]} Qxg4+ {[%emt 0:00:30]} 58. Kf1 {[%emt 0:00:00]} Qd1+ {[%emt 0:00:30]} 59. Kg2 {[%emt 0:00:00]} Qc2+ {[%emt 0:01:01]} 60. Kf1 {[%emt 0:00:00]} Qd3+ {[%emt 0:01:01]} 61. Kg2 {[%emt 0:00:00]} f3+ {[%emt 0:00:38]} 62. Kg3 {[%emt 0:00:00]} f2+ {[%emt 0:00:07]} 63. Kg4 {[%emt 0:00:00]} Qf3# {[%emt 0:00:15]} 0-1

[Event "Festival Groningen-A 2024"]
[Site "Groningen"]
[Date "2024.12.26"]
[Round "5.27"]
[White "Kazarjan, Gachatur"]
[Black "Duson, Robin"]
[Result "1-0"]
[ECO "C50"]
[WhiteElo "2067"]
[BlackElo "2159"]
[Annotator "RC"]
[PlyCount "83"]
[EventDate "2024.12.21"]
[EventType "swiss"]
[EventCountry "NED"]
[SourceTitle "playchess.com"]
[Source "ChessBase"]
[SourceQuality "1"]
[TimeControl "40/5400+30:1800+30"]

1. e4 {[%emt 0:00:03]} e5 {[%emt 0:00:12]} 2. Nf3 {[%emt 0:00:03]} Nc6 {[%emt 0:00:16]} 3. Bc4 {[%emt 0:00:05]} Nf6 {[%emt 0:00:40]} 4. d3 {[%emt 0:00:10]} Bc5 {[%emt 0:00:38]} 5. Nc3 {[%emt 0:00:31]} a6 {[%emt 0:03:27]} 6. Bg5 {[%emt 0:00:56]} h6 {[%emt 0:01:19]} 7. Bxf6 {[%emt 0:00:48]} Qxf6 {[%emt 0:00:10]} 8. Nd5 {[%emt 0:00:03]} Qd8 {[%emt 0:00:29]} 9. c3 {[%emt 0:00:19]} O-O {[%emt 0:03:23]} 10. d4 {[%emt 0:08:08]} exd4 {[%emt 0:00:47]} 11. cxd4 {[%emt 0:00:06]} Ba7 {[%emt 0:00:52]} 12. O-O {[%emt 0:01:54]} Ne7 {[%emt 0:02:45]} 13. Ne3 {[%emt 0:11:39]} Ng6 {[%emt 0:08:56]} 14. g3 {[%emt 0:16:12]} d6 {[%emt 0:05:25]} 15. a4 {[%emt 0:12:04]} c6 {[%emt 0:09:33]} 16. a5 {[%emt 0:02:41]} Be6 {[%emt 0:04:57]} 17. Bd3 {[%emt 0:03:39]} Ne7 {[%emt 0:02:43]} 18. Bc2 {[%emt 0:05:49]} f5 {[%emt 0:07:39]} 19. d5 {[%emt 0:19:23]} cxd5 {[%emt 0:10:32]} 20. exf5 {[%emt 0:02:42]} Bxe3 {[%emt 0:06:11]} 21. fxe6 {[%emt 0:01:20]} Ba7 {[%emt 0:01:11]} 22. Qd3 {[%emt 0:03:21]} g6 {[%emt 0:04:20]} 23. Kg2 {[%emt 0:03:16]} Rf6 {[%emt 0:01:53]} 24. Bb3 {[%emt 0:00:34]} Kg7 {[%emt 0:07:22]} 25. Bxd5 {[%emt 0:02:43]} Nxd5 {[%emt 0:01:06]} 26. Qxd5 {[%emt 0:00:05]} Qe7 {[%emt 0:00:59]} 27. Rfe1 {[%emt 0:00:14]} Raf8 {[%emt 0:01:18]} 28. Ra3 {[%emt 0:00:25]} Rf5 {[%emt 0:01:46]} 29. Qd2 {[%emt 0:03:13]} g5 {[%emt 0:04:15]} 30. h3 {[%emt 0:00:48]} h5 {[%emt 0:00:45]} 31. Re2 {[%emt 0:00:40]} g4 {[%emt 0:03:04]} 32. hxg4 {[%emt 0:00:48]} hxg4 {[%emt 0:00:06]} 33. Nh4 {[%emt 0:01:31]} Rb5 {[%emt 0:03:49]} 34. Ra4 {[%emt 0:00:29]} Rg5 {[%emt 0:02:19]} 35. Qc3+ {[%emt 0:00:11]} Kh6 {[%emt 0:00:55]} 36. Rf4 {[%emt 0:00:49]} Rc5 {[%emt 0:01:44]} 37. Rxf8 {[%emt 0:00:22]} Qxf8 {[%emt 0:00:37]} 38. e7 {[%emt 0:00:12]} Qe8 {[%emt 0:00:26]} 39. Qf6+ {[%emt 0:00:06]} Kh7 {[%emt 0:00:18]} 40. Qg6+ {[%emt 0:00:35]} Qxg6 {[%emt 0:00:36]} 41. Nxg6 {[%emt 0:30:05]} Rc8 {[%emt 0:30:24]} 42. Nf8+ {[%emt 0:00:23]} 1-0

[Event "Festival Groningen-A 2024"]
[Site "Groningen"]
[Date "2024.12.26"]
[Round "5.28"]
[White "Spit, Vincent"]
[Black "De Boer, Bas"]
[Result "0-1"]
[ECO "C42"]
[WhiteElo "2113"]
[BlackElo "2157"]
[Annotator "RC"]
[PlyCount "106"]
[EventDate "2024.12.21"]
[EventType "swiss"]
[EventCountry "NED"]
[SourceTitle "playchess.com"]
[Source "ChessBase"]
[SourceQuality "1"]
[TimeControl "40/5400+30:1800+30"]

1. e4 {[%emt 0:00:05]} e5 {[%emt 0:00:04]} 2. Nf3 {[%emt 0:00:18]} Nf6 {[%emt 0:00:05]} 3. Nxe5 {[%emt 0:00:25]} d6 {[%emt 0:00:05]} 4. Nf3 {[%emt 0:00:11]} Nxe4 {[%emt 0:00:06]} 5. d4 {[%emt 0:00:31]} d5 {[%emt 0:00:20]} 6. Bd3 {[%emt 0:00:14]} Bd6 {[%emt 0:00:07]} 7. O-O {[%emt 0:00:33]} O-O {[%emt 0:00:44]} 8. c4 {[%emt 0:00:20]} c6 {[%emt 0:01:23]} 9. Nc3 {[%emt 0:00:20]} Nxc3 {[%emt 0:01:17]} 10. bxc3 {[%emt 0:00:06]} dxc4 {[%emt 0:00:05]} 11. Bxc4 {[%emt 0:00:11]} Nd7 {[%emt 0:07:34]} 12. Re1 {[%emt 0:03:22]} h6 {[%emt 0:06:01]} 13. Bb3 {[%emt 0:07:01]} Nf6 {[%emt 0:12:03]} 14. Qd3 {[%emt 0:01:49]} c5 {[%emt 0:11:44]} 15. Ne5 {[%emt 0:10:00]} cxd4 {[%emt 0:13:38]} 16. cxd4 {[%emt 0:16:13]} Bxe5 {[%emt 0:07:52]} 17. Rxe5 {[%emt 0:00:07]} Ng4 {[%emt 0:00:05]} 18. Rh5 {[%emt 0:02:51]} Be6 {[%emt 0:10:50]} 19. Bb2 {[%emt 0:14:21]} Nf6 {[%emt 0:03:25]} 20. Re5 {[%emt 0:01:18]} Bxb3 {[%emt 0:07:09]} 21. Qxb3 {[%emt 0:01:34]} Ng4 {[%emt 0:02:28]} 22. Rf5 {[%emt 0:03:42]} Qd6 {[%emt 0:03:01]} 23. Qh3 {[%emt 0:02:20]} Qg6 {[%emt 0:01:45]} 24. Qf3 {[%emt 0:00:43]} Rac8 {[%emt 0:02:29]} 25. d5 {[%emt 0:01:40]} Rc2 {[%emt 0:00:44]} 26. Bd4 {[%emt 0:01:33]} Rfc8 {[%emt 0:00:12]} 27. g3 {[%emt 0:01:34]} R8c4 {[%emt 0:00:40]} 28. Rd1 {[%emt 0:03:04]} h5 {[%emt 0:02:29]} 29. Bxa7 {[%emt 0:06:27]} Rc1 {[%emt 0:00:22]} 30. Rxc1 {[%emt 0:01:03]} Rxc1+ {[%emt 0:00:06]} 31. Kg2 {[%emt 0:00:05]} Qa6 {[%emt 0:00:12]} 32. Kh3 {[%emt 0:03:44]} Qxa7 {[%emt 0:00:04]} 33. Rxf7 {[%emt 0:00:31]} Nf6 {[%emt 0:00:15]} 34. Rxf6 {[%emt 0:01:23]} gxf6 {[%emt 0:00:03]} 35. Qxf6 {[%emt 0:00:19]} Qc5 {[%emt 0:01:06]} 36. Qe6+ {[%emt 0:04:38]} Kg7 {[%emt 0:03:15]} 37. Qd7+ {[%emt 0:00:59]} Kf8 {[%emt 0:01:15]} 38. Qf5+ {[%emt 0:01:45]} Ke7 {[%emt 0:00:53]} 39. Qxh5 {[%emt 0:03:06]} Rc2 {[%emt 0:00:23]} 40. Qe5+ {[%emt 0:04:04]} Kd8 {[%emt 0:01:11]} 41. f4 {[%emt 0:33:19]} Rd2 {[%emt 0:05:36]} 42. f5 {[%emt 0:00:00]} Rxd5 {[%emt 0:00:33]} 43. Qb8+ {[%emt 0:00:00]} Qc8 {[%emt 0:00:50]} 44. Qxc8+ {[%emt 0:00:00]} Kxc8 {[%emt 0:00:03]} 45. g4 {[%emt 0:00:00]} Ra5 {[%emt 0:00:31]} 46. Kg3 {[%emt 0:00:00]} Kd7 {[%emt 0:00:11]} 47. h4 {[%emt 0:00:00]} Rxa2 {[%emt 0:00:07]} 48. h5 {[%emt 0:00:00]} b5 {[%emt 0:00:08]} 49. h6 {[%emt 0:00:00]} b4 {[%emt 0:00:12]} 50. h7 {[%emt 0:00:00]} Ra8 {[%emt 0:00:08]} 51. g5 {[%emt 0:00:00]} Ke7 {[%emt 0:00:45]} 52. Kg4 {[%emt 0:00:00]} b3 {[%emt 0:00:24]} 53. f6+ {[%emt 0:00:00]} Ke6 {[%emt 0:00:39]} 0-1